[Event "Early-Titled-Tuesday-Blitz-April-16-2024"]
[Site "Chess.com"]
[Date "2024.04.16"]
[Round "3"]
[White "ajeale2"]
[Black "GatoRojo150"]
[Result "0-1"]
[WhiteElo "2427"]
[BlackElo "2611"]
[TimeControl "180+1"]
[EndTime "8:29:34 PDT"]
[Termination "GatoRojo150 won by checkmate"]

1. d4 {[%clk 0:03:00.9]} 1... d5 {[%clk 0:02:59.5]} 2. Bf4 {[%clk 0:02:58.9]}
2... c5 {[%clk 0:02:59.3]} 3. e3 {[%clk 0:02:59.3]} 3... Nc6 {[%clk 0:02:59.5]}
4. c3 {[%clk 0:02:59.5]} 4... Qb6 {[%clk 0:02:59.6]} 5. Qb3 {[%clk 0:02:54.3]}
5... c4 {[%clk 0:02:56.5]} 6. Qc2 {[%clk 0:02:54.5]} 6... e5 {[%clk 0:02:49]} 7.
dxe5 {[%clk 0:02:52.1]} 7... Bf5 {[%clk 0:02:48.1]} 8. Qxf5 {[%clk 0:02:22.1]}
8... Qxb2 {[%clk 0:02:46.5]} 9. Nf3 {[%clk 0:02:19.1]} 9... Nge7 {[%clk
0:02:26.3]} 10. Qg4 {[%clk 0:02:04.1]} 10... Qxa1 {[%clk 0:02:24]} 11. Nd2
{[%clk 0:02:02.7]} 11... h5 {[%clk 0:02:08.3]} 12. Qh3 {[%clk 0:01:59.9]} 12...
Qxa2 {[%clk 0:01:36.7]} 13. e6 {[%clk 0:01:48.5]} 13... Qc2 {[%clk 0:01:21.2]}
14. exf7+ {[%clk 0:01:41.9]} 14... Kxf7 {[%clk 0:01:22.1]} 15. Be2 {[%clk
0:01:39.9]} 15... g6 {[%clk 0:01:09.1]} 16. O-O {[%clk 0:01:36.7]} 16... Bg7
{[%clk 0:00:52]} 17. e4 {[%clk 0:01:30.6]} 17... b5 {[%clk 0:00:37.5]} 18. Bd6
{[%clk 0:01:12.7]} 18... dxe4 {[%clk 0:00:30.8]} 19. Qh4 {[%clk 0:00:50.2]}
19... Nf5 {[%clk 0:00:29.2]} 20. Qf4 {[%clk 0:00:33.6]} 20... Bh6 {[%clk
0:00:27.2]} 21. Qxe4 {[%clk 0:00:33.9]} 21... Qxe4 {[%clk 0:00:25.7]} 22. Nxe4
{[%clk 0:00:34.8]} 22... Rhe8 {[%clk 0:00:24.4]} 23. Bf3 {[%clk 0:00:35.1]}
23... Rad8 {[%clk 0:00:19.6]} 24. Bc5 {[%clk 0:00:29.7]} 24... Ne5 {[%clk
0:00:18.6]} 25. Bd1 {[%clk 0:00:25.6]} 25... Nd3 {[%clk 0:00:17.8]} 26. Bf3
{[%clk 0:00:10.7]} 26... Rxe4 {[%clk 0:00:16.1]} 27. Bxe4 {[%clk 0:00:11.3]}
27... Nxc5 {[%clk 0:00:16.7]} 28. Bc6 {[%clk 0:00:11.8]} 28... a6 {[%clk
0:00:13.5]} 29. h3 {[%clk 0:00:12.2]} 29... Ne7 {[%clk 0:00:12.7]} 30. Bf3
{[%clk 0:00:11.7]} 30... Nd3 {[%clk 0:00:11]} 31. Na3 {[%clk 0:00:11.3]} 31...
Ne5 {[%clk 0:00:10.4]} 32. Be4 {[%clk 0:00:10.9]} 32... Rd6 {[%clk 0:00:05.8]}
33. Nc2 {[%clk 0:00:11]} 33... Nf5 {[%clk 0:00:05.9]} 34. Ra1 {[%clk 0:00:09]}
34... Nd3 {[%clk 0:00:05.5]} 35. g4 {[%clk 0:00:06.3]} 35... hxg4 {[%clk
0:00:03.8]} 36. hxg4 {[%clk 0:00:07.2]} 36... Nh4 {[%clk 0:00:04.2]} 37. Nd4
{[%clk 0:00:07.3]} 37... Nc5 {[%clk 0:00:03.7]} 38. Bg2 {[%clk 0:00:05]} 38...
Nb3 {[%clk 0:00:03.2]} 39. Re1 {[%clk 0:00:03.3]} 39... Nxd4 {[%clk 0:00:03.1]}
40. cxd4 {[%clk 0:00:02.9]} 40... Nxg2 {[%clk 0:00:03.8]} 41. Kxg2 {[%clk
0:00:02.7]} 41... Rxd4 {[%clk 0:00:04.4]} 42. Re5 {[%clk 0:00:03.2]} 42... Rxg4+
{[%clk 0:00:04.4]} 43. Kf3 {[%clk 0:00:03.1]} 43... Rf4+ {[%clk 0:00:05]} 44.
Kg2 {[%clk 0:00:03.6]} 44... Rf5 {[%clk 0:00:05.6]} 45. Re4 {[%clk 0:00:03.7]}
45... c3 {[%clk 0:00:05.7]} 46. Rd4 {[%clk 0:00:03.8]} 46... c2 {[%clk
0:00:04.8]} 47. Rd7+ {[%clk 0:00:04.5]} 47... Ke6 {[%clk 0:00:05.2]} 48. Rc7
{[%clk 0:00:05.4]} 48... c1=Q {[%clk 0:00:05.5]} 49. Rxc1 {[%clk 0:00:06.3]}
49... Bxc1 {[%clk 0:00:05.5]} 50. f3 {[%clk 0:00:06.8]} 50... Rxf3 {[%clk
0:00:05]} 51. Kxf3 {[%clk 0:00:07]} 51... b4 {[%clk 0:00:05.5]} 52. Ke2 {[%clk
0:00:07.9]} 52... b3 {[%clk 0:00:05.9]} 53. Kd3 {[%clk 0:00:08.8]} 53... b2
{[%clk 0:00:06.5]} 54. Kc2 {[%clk 0:00:09.7]} 54... g5 {[%clk 0:00:07]} 55. Kb1
{[%clk 0:00:10.6]} 55... g4 {[%clk 0:00:07.4]} 56. Kc2 {[%clk 0:00:11.5]} 56...
g3 {[%clk 0:00:08]} 57. Kb1 {[%clk 0:00:12.4]} 57... g2 {[%clk 0:00:08.6]} 58.
Kc2 {[%clk 0:00:13.3]} 58... g1=Q {[%clk 0:00:09.1]} 59. Kb1 {[%clk 0:00:14.2]}
59... Qg6+ {[%clk 0:00:09]} 60. Ka2 {[%clk 0:00:14.5]} 60... b1=Q# {[%clk
0:00:09.4]} 0-1

[Event "Early-Titled-Tuesday-Blitz-April-16-2024"]
[Site "Chess.com"]
[Date "2024.04.16"]
[Round "3"]
[White "AmanteDeMoi"]
[Black "MaxLeto"]
[Result "1-0"]
[WhiteElo "2602"]
[BlackElo "2415"]
[TimeControl "180+1"]
[EndTime "8:29:35 PDT"]
[Termination "AmanteDeMoi won by checkmate"]

1. Nf3 {[%clk 0:02:55.6]} 1... d5 {[%clk 0:02:59.3]} 2. e3 {[%clk 0:02:53.6]}
2... c5 {[%clk 0:02:58.5]} 3. b3 {[%clk 0:02:53]} 3... Nc6 {[%clk 0:02:58.4]} 4.
Bb2 {[%clk 0:02:52.9]} 4... Nf6 {[%clk 0:02:59]} 5. Bb5 {[%clk 0:02:49.3]} 5...
Bd7 {[%clk 0:02:59.2]} 6. O-O {[%clk 0:02:46.5]} 6... e6 {[%clk 0:02:59.6]} 7.
c4 {[%clk 0:02:43]} 7... dxc4 {[%clk 0:02:56.1]} 8. bxc4 {[%clk 0:02:41.4]} 8...
Bd6 {[%clk 0:02:56.6]} 9. d4 {[%clk 0:02:40.7]} 9... O-O {[%clk 0:02:57.3]} 10.
d5 {[%clk 0:02:38]} 10... exd5 {[%clk 0:02:39.8]} 11. cxd5 {[%clk 0:02:36.4]}
11... Nb8 {[%clk 0:02:34]} 12. Bxd7 {[%clk 0:02:29.6]} 12... Nbxd7 {[%clk
0:02:31.3]} 13. Nc3 {[%clk 0:02:27.5]} 13... a6 {[%clk 0:02:25.4]} 14. a4 {[%clk
0:02:27.4]} 14... Nb6 {[%clk 0:02:17.3]} 15. e4 {[%clk 0:02:14.4]} 15... Nc4
{[%clk 0:02:14.7]} 16. Bc1 {[%clk 0:02:14.6]} 16... Re8 {[%clk 0:02:01.3]} 17.
Qe2 {[%clk 0:02:07.3]} 17... Ne5 {[%clk 0:01:47.9]} 18. Nd2 {[%clk 0:02:07.3]}
18... c4 {[%clk 0:00:52.1]} 19. f4 {[%clk 0:01:39.2]} 19... Nd3 {[%clk
0:00:31.5]} 20. Nxc4 {[%clk 0:01:39]} 20... Nxc1 {[%clk 0:00:23.6]} 21. Raxc1
{[%clk 0:01:39.9]} 21... Bc5+ {[%clk 0:00:23.5]} 22. Kh1 {[%clk 0:01:39.3]}
22... Bd4 {[%clk 0:00:24.2]} 23. Qd3 {[%clk 0:01:35.1]} 23... Bxc3 {[%clk
0:00:23]} 24. Qxc3 {[%clk 0:01:12.2]} 24... Nxe4 {[%clk 0:00:23.4]} 25. Qf3
{[%clk 0:01:12.7]} 25... Rc8 {[%clk 0:00:21.1]} 26. Rfd1 {[%clk 0:00:52]} 26...
b5 {[%clk 0:00:12.8]} 27. axb5 {[%clk 0:00:51.6]} 27... axb5 {[%clk 0:00:13.7]}
28. Ne3 {[%clk 0:00:45.2]} 28... Rxc1 {[%clk 0:00:02.3]} 29. Rxc1 {[%clk
0:00:45.9]} 29... b4 {[%clk 0:00:02.1]} 30. g4 {[%clk 0:00:32.4]} 30... h6
{[%clk 0:00:02]} 31. Nf5 {[%clk 0:00:32.3]} 31... Nf6 {[%clk 0:00:01.8]} 32. d6
{[%clk 0:00:31.8]} 32... Re4 {[%clk 0:00:02]} 33. g5 {[%clk 0:00:24]} 33... hxg5
{[%clk 0:00:02.4]} 34. fxg5 {[%clk 0:00:24.5]} 34... Re6 {[%clk 0:00:02.2]} 35.
gxf6 {[%clk 0:00:24.2]} 35... Rxf6 {[%clk 0:00:03.1]} 36. Qg4 {[%clk 0:00:17.5]}
36... Kf8 {[%clk 0:00:02.8]} 37. Qxg7+ {[%clk 0:00:16.2]} 37... Ke8 {[%clk
0:00:03.4]} 38. d7+ {[%clk 0:00:14.7]} 38... Kxd7 {[%clk 0:00:03.2]} 39. Rd1+
{[%clk 0:00:14.9]} 39... Ke6 {[%clk 0:00:04]} 40. Rxd8 {[%clk 0:00:14.8]} 40...
Rxf5 {[%clk 0:00:04.9]} 41. Qg4 {[%clk 0:00:12.1]} 41... Kf6 {[%clk 0:00:04.6]}
42. Rd6+ {[%clk 0:00:11.5]} 42... Ke5 {[%clk 0:00:04.9]} 43. Rd5+ {[%clk
0:00:12]} 43... Kxd5 {[%clk 0:00:05.8]} 44. Qxf5+ {[%clk 0:00:12.7]} 44... Kc4
{[%clk 0:00:06.3]} 45. Qxf7+ {[%clk 0:00:13.5]} 45... Kc3 {[%clk 0:00:07.2]} 46.
Qg7+ {[%clk 0:00:13.5]} 46... Kc2 {[%clk 0:00:07.8]} 47. h4 {[%clk 0:00:14.1]}
47... b3 {[%clk 0:00:08.7]} 48. h5 {[%clk 0:00:14.3]} 48... b2 {[%clk
0:00:09.6]} 49. Qxb2+ {[%clk 0:00:14.5]} 49... Kd1 {[%clk 0:00:10.5]} 50. h6
{[%clk 0:00:14.6]} 50... Ke1 {[%clk 0:00:11.4]} 51. h7 {[%clk 0:00:14.8]} 51...
Kf1 {[%clk 0:00:12.3]} 52. h8=Q {[%clk 0:00:14.8]} 52... Ke1 {[%clk 0:00:13.2]}
53. Qg8 {[%clk 0:00:14.8]} 53... Kf1 {[%clk 0:00:14.1]} 54. Qg1# {[%clk
0:00:15]} 1-0

[Event "Early-Titled-Tuesday-Blitz-April-16-2024"]
[Site "Chess.com"]
[Date "2024.04.16"]
[Round "3"]
[White "kachsona"]
[Black "Flaccidmoves"]
[Result "1-0"]
[WhiteElo "2612"]
[BlackElo "2430"]
[TimeControl "180+1"]
[EndTime "8:29:36 PDT"]
[Termination "kachsona won by resignation"]

1. e4 {[%clk 0:03:00.9]} 1... Nf6 {[%clk 0:02:59.1]} 2. e5 {[%clk 0:02:59.3]}
2... Nd5 {[%clk 0:02:59.7]} 3. d4 {[%clk 0:02:59.8]} 3... d6 {[%clk 0:03:00.1]}
4. Nf3 {[%clk 0:02:59.6]} 4... dxe5 {[%clk 0:02:59.9]} 5. Nxe5 {[%clk
0:02:59.5]} 5... c6 {[%clk 0:03:00.6]} 6. Be2 {[%clk 0:02:57.8]} 6... Bf5 {[%clk
0:03:00.6]} 7. O-O {[%clk 0:02:53.3]} 7... Nd7 {[%clk 0:03:00.4]} 8. Nf3 {[%clk
0:02:53.4]} 8... e6 {[%clk 0:03:00.1]} 9. c4 {[%clk 0:02:53.2]} 9... N5f6 {[%clk
0:03:00.1]} 10. Nc3 {[%clk 0:02:48]} 10... Bd6 {[%clk 0:02:59.2]} 11. Bd3 {[%clk
0:02:39.2]} 11... Bxd3 {[%clk 0:02:55.2]} 12. Qxd3 {[%clk 0:02:40.1]} 12... O-O
{[%clk 0:02:55.6]} 13. Bg5 {[%clk 0:02:38.2]} 13... Qc7 {[%clk 0:02:50.5]} 14.
Rfe1 {[%clk 0:02:33.1]} 14... a6 {[%clk 0:02:25.6]} 15. Rad1 {[%clk 0:02:27.7]}
15... b5 {[%clk 0:02:17.9]} 16. c5 {[%clk 0:02:18.5]} 16... Bf4 {[%clk
0:02:04.9]} 17. Bxf6 {[%clk 0:02:18.3]} 17... Nxf6 {[%clk 0:01:59.9]} 18. g3
{[%clk 0:02:18]} 18... Bh6 {[%clk 0:01:58.3]} 19. Ne5 {[%clk 0:02:17.7]} 19...
Rad8 {[%clk 0:01:45.2]} 20. Qf3 {[%clk 0:02:17.5]} 20... Nd5 {[%clk 0:01:39.1]}
21. Ne4 {[%clk 0:02:10.5]} 21... g6 {[%clk 0:01:21.4]} 22. Nd6 {[%clk
0:01:37.1]} 22... Bg7 {[%clk 0:01:16.4]} 23. h4 {[%clk 0:01:34.5]} 23... h5
{[%clk 0:01:03]} 24. Kh1 {[%clk 0:01:33.9]} 24... Rxd6 {[%clk 0:00:26.7]} 25.
cxd6 {[%clk 0:01:32.6]} 25... Qxd6 {[%clk 0:00:27.6]} 26. Rc1 {[%clk 0:01:29.5]}
26... Bxe5 {[%clk 0:00:27.1]} 27. Rxe5 {[%clk 0:01:11.1]} 27... Rc8 {[%clk
0:00:25.5]} 28. g4 {[%clk 0:00:52.7]} 28... hxg4 {[%clk 0:00:23]} 29. Qxg4
{[%clk 0:00:52.7]} 29... c5 {[%clk 0:00:16.1]} 30. h5 {[%clk 0:00:44.4]} 30...
Ne7 {[%clk 0:00:16.7]} 31. Rexc5 {[%clk 0:00:40.8]} 31... Rd8 {[%clk 0:00:15.3]}
32. hxg6 {[%clk 0:00:33.5]} 32... Nxg6 {[%clk 0:00:16.2]} 33. Rc8 {[%clk
0:00:32.5]} 33... Rxc8 {[%clk 0:00:15]} 34. Rxc8+ {[%clk 0:00:31.8]} 34... Kg7
{[%clk 0:00:15.4]} 35. Qe4 {[%clk 0:00:30.1]} 35... Ne7 {[%clk 0:00:13.1]} 36.
Rc3 {[%clk 0:00:26.9]} 36... Nf5 {[%clk 0:00:12.3]} 37. Qe5+ {[%clk 0:00:26.2]}
37... Qxe5 {[%clk 0:00:12.4]} 38. dxe5 {[%clk 0:00:26.8]} 38... Kg6 {[%clk
0:00:11.9]} 39. Ra3 {[%clk 0:00:26.4]} 39... Nd4 {[%clk 0:00:10.5]} 40. Rxa6
{[%clk 0:00:26.1]} 40... Kf5 {[%clk 0:00:11.2]} 41. Ra7 {[%clk 0:00:25.5]} 41...
Kxe5 {[%clk 0:00:11.2]} 42. Rxf7 {[%clk 0:00:25.1]} 42... Ke4 {[%clk 0:00:11.7]}
43. Kg2 {[%clk 0:00:24.2]} 43... e5 {[%clk 0:00:12.1]} 44. Rd7 {[%clk
0:00:19.3]} 44... Kd3 {[%clk 0:00:12.1]} 45. Rd5 {[%clk 0:00:18.7]} 45... e4
{[%clk 0:00:09.7]} 46. a3 {[%clk 0:00:12.9]} 46... Kc4 {[%clk 0:00:09.8]} 47.
Rxd4+ {[%clk 0:00:09.2]} 47... Kxd4 {[%clk 0:00:10]} 48. b3 {[%clk 0:00:09.9]}
48... Kc3 {[%clk 0:00:05.5]} 49. a4 {[%clk 0:00:09.8]} 49... b4 {[%clk
0:00:05.6]} 50. a5 {[%clk 0:00:09.7]} 50... Kxb3 {[%clk 0:00:06.5]} 51. a6
{[%clk 0:00:10.3]} 51... Kc2 {[%clk 0:00:07.4]} 52. a7 {[%clk 0:00:11.1]} 52...
b3 {[%clk 0:00:08.3]} 53. a8=Q {[%clk 0:00:11.4]} 53... b2 {[%clk 0:00:09.2]}
54. Qxe4+ {[%clk 0:00:11.6]} 1-0

[Event "Early-Titled-Tuesday-Blitz-April-16-2024"]
[Site "Chess.com"]
[Date "2024.04.16"]
[Round "3"]
[White "Burgsvik"]
[Black "MaiqMaster"]
[Result "0-1"]
[WhiteElo "2232"]
[BlackElo "2427"]
[TimeControl "180+1"]
[EndTime "8:29:36 PDT"]
[Termination "MaiqMaster won by resignation"]

1. e4 {[%clk 0:03:00.9]} 1... c5 {[%clk 0:02:57.7]} 2. Nf3 {[%clk 0:03:00.6]}
2... e6 {[%clk 0:02:54.9]} 3. d4 {[%clk 0:03:01.5]} 3... cxd4 {[%clk 0:02:52.6]}
4. Nxd4 {[%clk 0:03:02.4]} 4... Nc6 {[%clk 0:02:53.2]} 5. Nc3 {[%clk 0:03:01.7]}
5... Qc7 {[%clk 0:02:50.2]} 6. Nb3 {[%clk 0:03:00.4]} 6... a6 {[%clk 0:02:41.6]}
7. Bd3 {[%clk 0:02:57.1]} 7... Nf6 {[%clk 0:02:41.1]} 8. Bg5 {[%clk 0:02:55.7]}
8... Be7 {[%clk 0:02:39.5]} 9. Qd2 {[%clk 0:02:54.4]} 9... h6 {[%clk 0:02:39.2]}
10. Be3 {[%clk 0:02:46.4]} 10... Ng4 {[%clk 0:02:29.7]} 11. Bf4 {[%clk
0:02:44.9]} 11... Nge5 {[%clk 0:02:28.4]} 12. Be2 {[%clk 0:02:39.5]} 12... b5
{[%clk 0:02:24.8]} 13. a3 {[%clk 0:02:38.8]} 13... Bb7 {[%clk 0:02:22.2]} 14.
Bg3 {[%clk 0:02:36.8]} 14... Qb6 {[%clk 0:02:14.2]} 15. a4 {[%clk 0:02:33.4]}
15... b4 {[%clk 0:02:10.2]} 16. Nd1 {[%clk 0:02:33.1]} 16... a5 {[%clk 0:02:06]}
17. Ne3 {[%clk 0:02:29.5]} 17... O-O {[%clk 0:01:57.3]} 18. f4 {[%clk
0:02:19.7]} 18... Ng6 {[%clk 0:01:57.3]} 19. h4 {[%clk 0:02:12.9]} 19... Rfd8
{[%clk 0:01:35.9]} 20. h5 {[%clk 0:02:09.9]} 20... Nf8 {[%clk 0:01:35.8]} 21. f5
{[%clk 0:02:09.8]} 21... d5 {[%clk 0:01:33.3]} 22. e5 {[%clk 0:02:01.5]} 22...
Ba6 {[%clk 0:01:20.5]} 23. fxe6 {[%clk 0:01:36.2]} 23... Nxe6 {[%clk 0:01:04.5]}
24. Nf5 {[%clk 0:01:30.3]} 24... Bf8 {[%clk 0:01:01.7]} 25. Bf2 {[%clk
0:01:20.4]} 25... d4 {[%clk 0:00:59.2]} 26. Bxa6 {[%clk 0:01:05.7]} 26... Qxa6
{[%clk 0:00:57.8]} 27. Bg3 {[%clk 0:00:42.1]} 27... d3 {[%clk 0:00:53.5]} 28.
O-O-O {[%clk 0:00:39.2]} 28... Qc4 {[%clk 0:00:48.1]} 29. Kb1 {[%clk 0:00:32.4]}
29... Rac8 {[%clk 0:00:44.7]} 30. Nd6 {[%clk 0:00:19.4]} 30... Bxd6 {[%clk
0:00:43]} 31. exd6 {[%clk 0:00:19.5]} 31... dxc2+ {[%clk 0:00:40.4]} 32. Qxc2
{[%clk 0:00:19.5]} 32... Qxc2+ {[%clk 0:00:41.2]} 33. Kxc2 {[%clk 0:00:19.5]}
33... Ncd4+ {[%clk 0:00:42.1]} 34. Kb1 {[%clk 0:00:18.9]} 34... Nxb3 {[%clk
0:00:42.1]} 35. d7 {[%clk 0:00:18.9]} 35... Rc4 {[%clk 0:00:35.7]} 36. Rd5
{[%clk 0:00:18.9]} 36... Nbc5 {[%clk 0:00:35]} 37. Rhd1 {[%clk 0:00:17.8]} 37...
b3 {[%clk 0:00:32.8]} 38. Bd6 {[%clk 0:00:17.5]} 38... Nxd7 {[%clk 0:00:29.2]}
39. Be7 {[%clk 0:00:17]} 39... Nf4 {[%clk 0:00:20.7]} 40. Rxd7 {[%clk
0:00:17.9]} 40... Rxd7 {[%clk 0:00:20.6]} 41. Rxd7 {[%clk 0:00:16.2]} 41... Re4
{[%clk 0:00:21.5]} 42. Bh4 {[%clk 0:00:14.3]} 42... Nxg2 {[%clk 0:00:20.7]} 43.
Bf2 {[%clk 0:00:14.3]} 43... Re2 {[%clk 0:00:19.9]} 44. Bg3 {[%clk 0:00:14]}
44... Ne3 {[%clk 0:00:19.6]} 45. Rc7 {[%clk 0:00:12.6]} 45... Nf5 {[%clk
0:00:19.2]} 46. Rc8+ {[%clk 0:00:10.4]} 46... Kh7 {[%clk 0:00:19.1]} 47. Bf4
{[%clk 0:00:11.2]} 47... Re1+ {[%clk 0:00:18.5]} 48. Bc1 {[%clk 0:00:11.8]}
48... Rh1 {[%clk 0:00:18.1]} 49. Rc3 {[%clk 0:00:11.7]} 49... Nd4 {[%clk
0:00:18.3]} 50. Rd3 {[%clk 0:00:09.1]} 50... Ne2 {[%clk 0:00:18.6]} 51. Rc3
{[%clk 0:00:09.3]} 51... Nxc3+ {[%clk 0:00:17.6]} 52. bxc3 {[%clk 0:00:09.6]}
52... Rxh5 {[%clk 0:00:17.8]} 53. Kb2 {[%clk 0:00:09.9]} 53... Rh1 {[%clk
0:00:18]} 54. Kb1 {[%clk 0:00:10]} 54... h5 {[%clk 0:00:17.2]} 55. Kb2 {[%clk
0:00:10.9]} 55... Rxc1 {[%clk 0:00:17.1]} 56. Kxc1 {[%clk 0:00:10.1]} 56... h4
{[%clk 0:00:18]} 57. Kb2 {[%clk 0:00:10.4]} 57... h3 {[%clk 0:00:18.9]} 58. Kxb3
{[%clk 0:00:11.3]} 58... h2 {[%clk 0:00:19.5]} 59. Kc4 {[%clk 0:00:11.5]} 59...
h1=Q {[%clk 0:00:20.4]} 60. Kb5 {[%clk 0:00:11.5]} 60... Qb7+ {[%clk 0:00:20.5]}
61. Kxa5 {[%clk 0:00:11.4]} 61... g5 {[%clk 0:00:21.1]} 62. c4 {[%clk
0:00:11.9]} 62... g4 {[%clk 0:00:21.8]} 63. c5 {[%clk 0:00:12.8]} 63... g3
{[%clk 0:00:21.8]} 64. c6 {[%clk 0:00:13.7]} 64... Qxc6 {[%clk 0:00:21.5]} 0-1

[Event "Early-Titled-Tuesday-Blitz-April-16-2024"]
[Site "Chess.com"]
[Date "2024.04.16"]
[Round "3"]
[White "tomesao"]
[Black "Iball95"]
[Result "0-1"]
[WhiteElo "2538"]
[BlackElo "2891"]
[TimeControl "180+1"]
[EndTime "8:29:37 PDT"]
[Termination "Iball95 won by checkmate"]

1. Nf3 {[%clk 0:03:00.9]} 1... d5 {[%clk 0:02:59.1]} 2. c4 {[%clk 0:03:00]} 2...
e6 {[%clk 0:02:58.7]} 3. e3 {[%clk 0:02:57.8]} 3... Nf6 {[%clk 0:02:58.7]} 4. b3
{[%clk 0:02:57.7]} 4... c5 {[%clk 0:02:59]} 5. Bb2 {[%clk 0:02:54.4]} 5... Nc6
{[%clk 0:02:59]} 6. cxd5 {[%clk 0:02:54.4]} 6... exd5 {[%clk 0:02:59.9]} 7. Bb5
{[%clk 0:02:45.9]} 7... Bd6 {[%clk 0:02:47]} 8. O-O {[%clk 0:02:42.9]} 8... O-O
{[%clk 0:02:47.1]} 9. d4 {[%clk 0:02:42.8]} 9... cxd4 {[%clk 0:02:45.1]} 10.
Bxc6 {[%clk 0:02:35.8]} 10... bxc6 {[%clk 0:02:44]} 11. Qxd4 {[%clk 0:02:32.6]}
11... Re8 {[%clk 0:02:43.4]} 12. h3 {[%clk 0:02:25]} 12... Bf5 {[%clk
0:02:31.6]} 13. Nc3 {[%clk 0:02:21.4]} 13... Qd7 {[%clk 0:02:30.7]} 14. Qh4
{[%clk 0:02:11.1]} 14... Ne4 {[%clk 0:02:14.3]} 15. Nxe4 {[%clk 0:01:53.7]}
15... Rxe4 {[%clk 0:02:15.2]} 16. Qg5 {[%clk 0:01:45.3]} 16... f6 {[%clk
0:01:48.7]} 17. Bxf6 {[%clk 0:01:37.3]} 17... h6 {[%clk 0:01:49.1]} 18. Qh5
{[%clk 0:01:27.6]} 18... gxf6 {[%clk 0:01:48.8]} 19. Nd4 {[%clk 0:01:18.9]}
19... Bh7 {[%clk 0:01:43.1]} 20. Qxh6 {[%clk 0:01:17.5]} 20... c5 {[%clk
0:01:40.7]} 21. Nf3 {[%clk 0:01:07.5]} 21... Qg7 {[%clk 0:01:31.5]} 22. Qh5
{[%clk 0:01:02.9]} 22... f5 {[%clk 0:01:25.3]} 23. Ng5 {[%clk 0:00:49.6]} 23...
Bg6 {[%clk 0:01:19.5]} 24. Qf3 {[%clk 0:00:45.8]} 24... Re5 {[%clk 0:01:07.1]}
25. Rad1 {[%clk 0:00:45.4]} 25... Bf7 {[%clk 0:01:05.5]} 26. h4 {[%clk
0:00:36.7]} 26... Rd8 {[%clk 0:00:57.9]} 27. Rd2 {[%clk 0:00:35.9]} 27... Bc7
{[%clk 0:00:57.3]} 28. Rfd1 {[%clk 0:00:35]} 28... a5 {[%clk 0:00:53.7]} 29. Qe2
{[%clk 0:00:33.6]} 29... f4 {[%clk 0:00:53.3]} 30. Qb5 {[%clk 0:00:29.8]} 30...
fxe3 {[%clk 0:00:51.5]} 31. fxe3 {[%clk 0:00:29.7]} 31... Bh5 {[%clk 0:00:44.3]}
32. Rf1 {[%clk 0:00:24.5]} 32... Qe7 {[%clk 0:00:28.7]} 33. Qd3 {[%clk
0:00:11.6]} 33... Rxe3 {[%clk 0:00:27.7]} 34. Qf5 {[%clk 0:00:11.5]} 34... Re1
{[%clk 0:00:24.8]} 35. Rf2 {[%clk 0:00:06.7]} 35... Rxf1+ {[%clk 0:00:15.9]} 36.
Rxf1 {[%clk 0:00:06.3]} 36... d4 {[%clk 0:00:15.2]} 37. Ne6 {[%clk 0:00:04.2]}
37... Re8 {[%clk 0:00:07.3]} 38. Qxh5 {[%clk 0:00:03.4]} 38... Qxe6 {[%clk
0:00:08]} 39. Qg5+ {[%clk 0:00:03.7]} 39... Kh8 {[%clk 0:00:06.4]} 40. Qh5+
{[%clk 0:00:03.9]} 40... Kg7 {[%clk 0:00:06.5]} 41. Qg5+ {[%clk 0:00:04.1]}
41... Qg6 {[%clk 0:00:06.7]} 42. Qd5 {[%clk 0:00:02.7]} 42... Re7 {[%clk
0:00:06.1]} 43. Qxc5 {[%clk 0:00:02.5]} 43... Qe4 {[%clk 0:00:03.9]} 44. Qc4
{[%clk 0:00:01.8]} 44... Qe3+ {[%clk 0:00:03.5]} 45. Kh1 {[%clk 0:00:01.7]}
45... Qe5 {[%clk 0:00:04.4]} 46. Kg1 {[%clk 0:00:02.1]} 46... Qh2+ {[%clk
0:00:04.7]} 47. Kf2 {[%clk 0:00:02.6]} 47... Qxh4+ {[%clk 0:00:05.3]} 48. g3
{[%clk 0:00:02.1]} 48... Qxg3# {[%clk 0:00:05.7]} 0-1